[Event "*** SCC Grand Prix: Titled Tuesday Blitz"]
[Site "Chess.com"]
[Date "2020.07.21"]
[Round "3"]
[White "Anna_ChessMate"]
[Black "Ausbildung"]
[Result "1-0"]
[WhiteElo "2508"]
[BlackElo "2230"]
[TimeControl "180+1"]
[EndTime "10:25:51 PDT"]
[Termination "Anna_ChessMate won by resignation"]

1. d4 {[%clk 0:02:59.5]} 1... g6 {[%clk 0:02:59.3]} 2. c4 {[%clk 0:02:56.4]}
2... Bg7 {[%clk 0:02:58.7]} 3. g3 {[%clk 0:02:35.1]} 3... d6 {[%clk 0:02:55.6]}
4. Bg2 {[%clk 0:02:34.4]} 4... Nd7 {[%clk 0:02:54.3]} 5. Nc3 {[%clk 0:02:33.6]}
5... e5 {[%clk 0:02:52.1]} 6. dxe5 {[%clk 0:02:31.4]} 6... dxe5 {[%clk
0:02:46.8]} 7. Nf3 {[%clk 0:02:30.5]} 7... c6 {[%clk 0:02:44.7]} 8. O-O {[%clk
0:02:29.8]} 8... Qc7 {[%clk 0:02:41.3]} 9. Qc2 {[%clk 0:02:27.1]} 9... a5 {[%clk
0:02:38.1]} 10. Bg5 {[%clk 0:02:15.6]} 10... Nc5 {[%clk 0:02:33.1]} 11. Rad1
{[%clk 0:02:13.9]} 11... Ne6 {[%clk 0:02:28.9]} 12. Be3 {[%clk 0:02:12.5]} 12...
Nf6 {[%clk 0:02:20.4]} 13. Na4 {[%clk 0:02:07.4]} 13... c5 {[%clk 0:02:03.2]}
14. Nc3 {[%clk 0:02:03.1]} 14... Nd4 {[%clk 0:02:01.8]} 15. Bxd4 {[%clk
0:02:01.5]} 15... exd4 {[%clk 0:01:48.5]} 16. Nb5 {[%clk 0:02:00]} 16... Qb6
{[%clk 0:01:42.7]} 17. e3 {[%clk 0:01:53.7]} 17... Bf5 {[%clk 0:01:36.7]} 18.
Qa4 {[%clk 0:01:52.2]} 18... O-O {[%clk 0:01:31.6]} 19. exd4 {[%clk 0:01:51.9]}
19... Rac8 {[%clk 0:01:00.4]} 20. d5 {[%clk 0:01:50.8]} 20... Ne4 {[%clk
0:00:56.4]} 21. Nh4 {[%clk 0:01:45.8]} 21... Bd7 {[%clk 0:00:54.4]} 22. Bxe4
{[%clk 0:01:44.5]} 22... Bxb2 {[%clk 0:00:51.7]} 23. Qc2 {[%clk 0:01:40.6]}
23... Bg7 {[%clk 0:00:50.3]} 24. a4 {[%clk 0:01:41]} 24... Rfe8 {[%clk
0:00:47.8]} 25. Bg2 {[%clk 0:01:39.4]} 25... Bg4 {[%clk 0:00:46.2]} 26. Rde1
{[%clk 0:01:37.5]} 26... Qf6 {[%clk 0:00:42.8]} 27. d6 {[%clk 0:01:36]} 1-0

[Event "*** SCC Grand Prix: Titled Tuesday Blitz"]
[Site "Chess.com"]
[Date "2020.07.21"]
[Round "3"]
[White "Nayemhaque22"]
[Black "MergenKakabaev"]
[Result "0-1"]
[WhiteElo "2183"]
[BlackElo "2485"]
[TimeControl "180+1"]
[EndTime "10:25:54 PDT"]
[Termination "MergenKakabaev won by resignation"]

1. e4 {[%clk 0:03:00.9]} 1... e5 {[%clk 0:02:59.6]} 2. Nf3 {[%clk 0:02:59.3]}
2... Nc6 {[%clk 0:02:59.4]} 3. Bb5 {[%clk 0:02:59.2]} 3... a6 {[%clk 0:02:59.3]}
4. Ba4 {[%clk 0:02:58.4]} 4... Nf6 {[%clk 0:02:58.5]} 5. d3 {[%clk 0:02:57.3]}
5... b5 {[%clk 0:02:57.5]} 6. Bb3 {[%clk 0:02:57.1]} 6... Be7 {[%clk 0:02:58.2]}
7. Bd2 {[%clk 0:02:56.8]} 7... d6 {[%clk 0:02:58.1]} 8. h3 {[%clk 0:02:56.3]}
8... O-O {[%clk 0:02:57.6]} 9. a3 {[%clk 0:02:55.2]} 9... Bb7 {[%clk 0:02:46.3]}
10. Nc3 {[%clk 0:02:54.2]} 10... Nd4 {[%clk 0:02:45.8]} 11. Nxd4 {[%clk
0:02:51.8]} 11... exd4 {[%clk 0:02:45.6]} 12. Ne2 {[%clk 0:02:49.9]} 12... c5
{[%clk 0:02:45.2]} 13. O-O {[%clk 0:02:45]} 13... Rc8 {[%clk 0:02:37.1]} 14. c4
{[%clk 0:02:11.3]} 14... dxc3 {[%clk 0:02:33.3]} 15. Nxc3 {[%clk 0:02:10.1]}
15... c4 {[%clk 0:02:33.2]} 16. dxc4 {[%clk 0:02:09.7]} 16... bxc4 {[%clk
0:02:33]} 17. Bc2 {[%clk 0:02:09.2]} 17... d5 {[%clk 0:02:31.4]} 18. exd5 {[%clk
0:02:07.4]} 18... Nxd5 {[%clk 0:02:30.8]} 19. Nxd5 {[%clk 0:01:56.1]} 19... Qxd5
{[%clk 0:02:31.7]} 20. f3 {[%clk 0:01:47.8]} 20... Rfd8 {[%clk 0:01:48.8]} 21.
Be3 {[%clk 0:01:41.7]} 21... Qe5 {[%clk 0:01:40.1]} 22. Qc1 {[%clk 0:01:38.7]}
22... Bd6 {[%clk 0:01:39.6]} 23. f4 {[%clk 0:01:36.3]} 23... Qd5 {[%clk
0:01:39.6]} 24. Rf2 {[%clk 0:01:35.2]} 24... Re8 {[%clk 0:01:39.5]} 25. Re2
{[%clk 0:01:24.3]} 25... Rxe3 {[%clk 0:01:35.5]} 0-1

[Event "*** SCC Grand Prix: Titled Tuesday Blitz"]
[Site "Chess.com"]
[Date "2020.07.21"]
[Round "3"]
[White "AlexVanGog"]
[Black "davidkalashian"]
[Result "1-0"]
[WhiteElo "2821"]
[BlackElo "2538"]
[TimeControl "180+1"]
[EndTime "10:25:57 PDT"]
[Termination "AlexVanGog won by resignation"]

1. e4 {[%clk 0:03:00.9]} 1... c5 {[%clk 0:02:59.3]} 2. Nf3 {[%clk 0:03:00.7]}
2... d6 {[%clk 0:02:59]} 3. d4 {[%clk 0:03:00.8]} 3... Nf6 {[%clk 0:02:59.4]} 4.
Nc3 {[%clk 0:03:00.3]} 4... cxd4 {[%clk 0:02:59.9]} 5. Nxd4 {[%clk 0:03:01.1]}
5... a6 {[%clk 0:03:00.1]} 6. g3 {[%clk 0:03:01.1]} 6... Bg4 {[%clk 0:02:59]} 7.
f3 {[%clk 0:02:57.6]} 7... Bd7 {[%clk 0:02:59.2]} 8. Bg2 {[%clk 0:02:57.4]} 8...
e5 {[%clk 0:02:58.8]} 9. Nde2 {[%clk 0:02:54.8]} 9... Bc6 {[%clk 0:02:58.7]} 10.
Be3 {[%clk 0:02:52.4]} 10... Be7 {[%clk 0:02:54.3]} 11. O-O {[%clk 0:02:52]}
11... d5 {[%clk 0:02:48.5]} 12. exd5 {[%clk 0:02:48.2]} 12... Nxd5 {[%clk
0:02:49.4]} 13. Nxd5 {[%clk 0:02:48.6]} 13... Qxd5 {[%clk 0:02:44.6]} 14. Qxd5
{[%clk 0:02:46.6]} 14... Bxd5 {[%clk 0:02:45.5]} 15. Nc3 {[%clk 0:02:44.4]}
15... Bc6 {[%clk 0:02:45.2]} 16. Rad1 {[%clk 0:02:35.7]} 16... O-O {[%clk
0:02:36.7]} 17. Nd5 {[%clk 0:02:34.5]} 17... Bxd5 {[%clk 0:02:31.7]} 18. Rxd5
{[%clk 0:02:35.2]} 18... Nc6 {[%clk 0:02:32.6]} 19. Rd7 {[%clk 0:02:27.6]} 19...
Rab8 {[%clk 0:02:00.5]} 20. Rfd1 {[%clk 0:02:18.9]} 20... Bf6 {[%clk 0:01:55.3]}
21. c3 {[%clk 0:02:16.4]} 21... b5 {[%clk 0:01:47]} 22. f4 {[%clk 0:02:12]}
22... Na5 {[%clk 0:01:38.4]} 23. Bc5 {[%clk 0:01:37.3]} 23... Rfe8 {[%clk
0:01:26.3]} 24. Bd5 {[%clk 0:01:35.2]} 24... Red8 {[%clk 0:01:08.6]} 25. Bxf7+
{[%clk 0:01:31.7]} 25... Kh8 {[%clk 0:01:09]} 26. Rxd8+ {[%clk 0:01:30.1]} 26...
Rxd8 {[%clk 0:01:09.9]} 27. Rxd8+ {[%clk 0:01:30.1]} 27... Bxd8 {[%clk
0:01:10.8]} 28. fxe5 {[%clk 0:01:30.1]} 28... Nc6 {[%clk 0:01:06.7]} 29. Bd6
{[%clk 0:01:29.3]} 29... Be7 {[%clk 0:01:02.3]} 30. Bd5 {[%clk 0:01:27.8]} 30...
Bxd6 {[%clk 0:01:01.8]} 31. exd6 {[%clk 0:01:28.5]} 31... Nd8 {[%clk 0:01:01.9]}
32. Kf2 {[%clk 0:01:27.6]} 32... g6 {[%clk 0:01:02.4]} 33. Ke3 {[%clk
0:01:27.7]} 33... Kg7 {[%clk 0:01:03.3]} 34. Kd4 {[%clk 0:01:28.3]} 34... Kf6
{[%clk 0:01:04.2]} 35. b3 {[%clk 0:01:24.2]} 35... Ne6+ {[%clk 0:00:58.9]} 36.
Bxe6 {[%clk 0:01:23.7]} 36... Kxe6 {[%clk 0:00:59.8]} 37. Kc5 {[%clk 0:01:24.3]}
1-0

[Event "*** SCC Grand Prix: Titled Tuesday Blitz"]
[Site "Chess.com"]
[Date "2020.07.21"]
[Round "3"]
[White "turayev_shahruh17"]
[Black "poppy73"]
[Result "1-0"]
[WhiteElo "2518"]
[BlackElo "2259"]
[TimeControl "180+1"]
[EndTime "10:25:57 PDT"]
[Termination "turayev_shahruh17 won by resignation"]

1. e4 {[%clk 0:03:00]} 1... c5 {[%clk 0:02:59.8]} 2. Nc3 {[%clk 0:03:00.9]} 2...
a6 {[%clk 0:02:59.1]} 3. a4 {[%clk 0:03:00.9]} 3... e6 {[%clk 0:02:57.1]} 4. g3
{[%clk 0:03:00.8]} 4... d5 {[%clk 0:02:56.1]} 5. exd5 {[%clk 0:03:01.7]} 5...
exd5 {[%clk 0:02:56]} 6. Bg2 {[%clk 0:03:01.9]} 6... Nf6 {[%clk 0:02:56.2]} 7.
Nge2 {[%clk 0:03:01.6]} 7... Be7 {[%clk 0:02:48.3]} 8. d4 {[%clk 0:03:01.7]}
8... O-O {[%clk 0:02:34.8]} 9. O-O {[%clk 0:03:00.2]} 9... Be6 {[%clk
0:02:33.1]} 10. dxc5 {[%clk 0:02:58]} 10... Bxc5 {[%clk 0:02:32.5]} 11. Bg5
{[%clk 0:02:58.7]} 11... d4 {[%clk 0:02:28.7]} 12. Ne4 {[%clk 0:02:58.2]} 12...
Be7 {[%clk 0:02:27]} 13. Nxd4 {[%clk 0:02:56.9]} 13... Nxe4 {[%clk 0:02:19.2]}
14. Bxe7 {[%clk 0:02:49]} 14... Qxe7 {[%clk 0:02:15.5]} 15. Bxe4 {[%clk
0:02:49.3]} 15... Rd8 {[%clk 0:02:08.3]} 16. c3 {[%clk 0:02:49.3]} 16... Nc6
{[%clk 0:01:55]} 17. Bxc6 {[%clk 0:02:42.2]} 17... bxc6 {[%clk 0:01:54.9]} 18.
Nxc6 {[%clk 0:02:43.1]} 18... Qc7 {[%clk 0:01:46.5]} 19. Nxd8 {[%clk 0:02:42.4]}
19... Rxd8 {[%clk 0:01:47.4]} 20. Qh5 {[%clk 0:02:28.7]} 20... g6 {[%clk
0:01:43.2]} 21. Qh6 {[%clk 0:02:24.4]} 21... Bg4 {[%clk 0:01:21.2]} 22. Rfe1
{[%clk 0:02:21.9]} 22... Qb7 {[%clk 0:01:11.8]} 23. Qg5 {[%clk 0:02:14.8]} 23...
Qd7 {[%clk 0:00:56]} 24. Re7 {[%clk 0:02:13.8]} 24... Qd6 {[%clk 0:00:34.7]} 25.
Rae1 {[%clk 0:02:11.9]} 25... Be6 {[%clk 0:00:27.8]} 26. Qf6 {[%clk 0:02:05.1]}
26... Rd7 {[%clk 0:00:25.8]} 27. Re8+ {[%clk 0:01:58.5]} 27... Qf8 {[%clk
0:00:24.2]} 28. Rxf8+ {[%clk 0:01:58.8]} 28... Kxf8 {[%clk 0:00:25.1]} 29. Rxe6
{[%clk 0:01:59.1]} 29... Rd1+ {[%clk 0:00:24.4]} 30. Kg2 {[%clk 0:01:59.6]} 1-0

[Event "*** SCC Grand Prix: Titled Tuesday Blitz"]
[Site "Chess.com"]
[Date "2020.07.21"]
[Round "3"]
[White "Dr-Bassem"]
[Black "AleksanderHnydiuk"]
[Result "1-0"]
[WhiteElo "2836"]
[BlackElo "2585"]
[TimeControl "180+1"]
[EndTime "10:26:01 PDT"]
[Termination "Dr-Bassem won by resignation"]

1. e4 {[%clk 0:03:00.9]} 1... c5 {[%clk 0:02:59.9]} 2. Nf3 {[%clk 0:03:00.6]}
2... e6 {[%clk 0:02:59.8]} 3. d3 {[%clk 0:03:00.1]} 3... Nc6 {[%clk 0:02:59.1]}
4. g3 {[%clk 0:03:00.7]} 4... g6 {[%clk 0:02:59.4]} 5. Bg2 {[%clk 0:03:00.5]}
5... Bg7 {[%clk 0:02:59.7]} 6. O-O {[%clk 0:03:01]} 6... Nge7 {[%clk 0:02:59.8]}
7. c3 {[%clk 0:03:01.1]} 7... e5 {[%clk 0:02:55.4]} 8. a3 {[%clk 0:03:01.1]}
8... O-O {[%clk 0:02:48.3]} 9. b4 {[%clk 0:02:58.9]} 9... d6 {[%clk 0:02:48.5]}
10. Nbd2 {[%clk 0:02:56.2]} 10... h6 {[%clk 0:02:45.4]} 11. Nb3 {[%clk
0:02:53.3]} 11... b6 {[%clk 0:02:44.4]} 12. b5 {[%clk 0:02:53.1]} 12... Nb8
{[%clk 0:02:43.6]} 13. a4 {[%clk 0:02:53.3]} 13... a5 {[%clk 0:02:35]} 14. d4
{[%clk 0:02:48]} 14... Be6 {[%clk 0:02:14.7]} 15. d5 {[%clk 0:02:41]} 15... Bc8
{[%clk 0:02:10.9]} 16. Nfd2 {[%clk 0:02:13.1]} 16... Nd7 {[%clk 0:02:09]} 17.
Nc4 {[%clk 0:02:11.9]} 17... Qc7 {[%clk 0:01:57.4]} 18. Qd3 {[%clk 0:01:56.7]}
18... f5 {[%clk 0:01:56.7]} 19. f4 {[%clk 0:01:53.7]} 19... fxe4 {[%clk
0:01:07]} 20. Bxe4 {[%clk 0:01:54.6]} 20... Nf6 {[%clk 0:01:07]} 21. fxe5 {[%clk
0:01:50.9]} 21... Nxe4 {[%clk 0:01:06.1]} 22. Rxf8+ {[%clk 0:01:49.9]} 22...
Kxf8 {[%clk 0:01:01.4]} 23. Qxe4 {[%clk 0:01:38.6]} 23... Bf5 {[%clk 0:01:00.6]}
24. Qf3 {[%clk 0:01:33.2]} 24... dxe5 {[%clk 0:00:44.1]} 25. d6 {[%clk
0:01:28.1]} 25... e4 {[%clk 0:00:44.3]} 26. Qxf5+ {[%clk 0:01:22.5]} 26... Nxf5
{[%clk 0:00:38.2]} 27. dxc7 {[%clk 0:01:23.4]} 27... Bxc3 {[%clk 0:00:37.7]} 28.
Nxb6 {[%clk 0:01:19.6]} 1-0

[Event "*** SCC Grand Prix: Titled Tuesday Blitz"]
[Site "Chess.com"]
[Date "2020.07.21"]
[Round "3"]
[White "Evachess2006"]
[Black "Efremov_Vlad"]
[Result "0-1"]
[WhiteElo "1606"]
[BlackElo "2188"]
[TimeControl "180+1"]
[EndTime "10:26:01 PDT"]
[Termination "Efremov_Vlad won on time"]

1. e4 {[%clk 0:01:33.9]} 1... c5 {[%clk 0:03:00]} 2. Nf3 {[%clk 0:01:26.6]} 2...
e6 {[%clk 0:02:59.9]} 3. d4 {[%clk 0:01:18.1]} 3... cxd4 {[%clk 0:03:00.8]} 4.
Nxd4 {[%clk 0:01:18.5]} 4... Nc6 {[%clk 0:02:58.8]} 5. Nxc6 {[%clk 0:01:05.6]}
5... bxc6 {[%clk 0:02:59.7]} 6. Be2 {[%clk 0:01:02.7]} 6... d5 {[%clk
0:02:59.6]} 7. exd5 {[%clk 0:01:02]} 7... cxd5 {[%clk 0:02:59]} 8. O-O {[%clk
0:01:01.8]} 8... Nf6 {[%clk 0:02:59]} 9. Bg5 {[%clk 0:00:40.3]} 9... Be7 {[%clk
0:02:57.4]} 10. c4 {[%clk 0:00:33.5]} 10... O-O {[%clk 0:02:49.8]} 11. cxd5
{[%clk 0:00:18.1]} 11... Nxd5 {[%clk 0:02:48.4]} 12. Bxe7 {[%clk 0:00:16.2]}
12... Qxe7 {[%clk 0:02:48.4]} 13. Nc3 {[%clk 0:00:14.4]} 13... Nxc3 {[%clk
0:02:46.8]} 14. bxc3 {[%clk 0:00:15.3]} 14... Bb7 {[%clk 0:02:47.1]} 15. Rb1
{[%clk 0:00:12.4]} 15... Rac8 {[%clk 0:02:40]} 16. Qb3 {[%clk 0:00:07.6]} 16...
Bd5 {[%clk 0:02:39.5]} 17. Qb2 {[%clk 0:00:07.3]} 17... Qc7 {[%clk 0:02:37.9]}
18. c4 {[%clk 0:00:07.5]} 18... Ba8 {[%clk 0:02:35.9]} 19. Rfc1 {[%clk
0:00:07.2]} 19... Qf4 {[%clk 0:02:27.1]} 20. Bf1 {[%clk 0:00:07.2]} 20... Rc5
{[%clk 0:02:24.1]} 21. Qb3 {[%clk 0:00:06.2]} 21... Rfc8 {[%clk 0:02:22.8]} 22.
Qe3 {[%clk 0:00:06.6]} 22... Qc7 {[%clk 0:02:06.1]} 23. Rb3 {[%clk 0:00:03.6]}
23... a5 {[%clk 0:02:04.9]} 24. Rbc3 {[%clk 0:00:04]} 24... Bb7 {[%clk
0:02:02.4]} 25. Be2 {[%clk 0:00:04.3]} 25... Ba6 {[%clk 0:02:02.1]} 26. Bf3
{[%clk 0:00:04.5]} 26... Bxc4 {[%clk 0:01:55.1]} 0-1

[Event "*** SCC Grand Prix: Titled Tuesday Blitz"]
[Site "Chess.com"]
[Date "2020.07.21"]
[Round "3"]
[White "sergiochess83"]
[Black "IwkooO"]
[Result "1-0"]
[WhiteElo "2849"]
[BlackElo "2608"]
[TimeControl "180+1"]
[EndTime "10:26:03 PDT"]
[Termination "sergiochess83 won by resignation"]

1. e4 {[%clk 0:03:00.9]} 1... c5 {[%clk 0:02:58.9]} 2. Nf3 {[%clk 0:03:00.4]}
2... e6 {[%clk 0:02:58.9]} 3. d4 {[%clk 0:02:59.8]} 3... cxd4 {[%clk 0:02:59.8]}
4. Nxd4 {[%clk 0:03:00.2]} 4... Nc6 {[%clk 0:03:00.5]} 5. Nc3 {[%clk 0:03:00]}
5... a6 {[%clk 0:03:00.7]} 6. Bf4 {[%clk 0:02:57.4]} 6... Bb4 {[%clk 0:02:37.8]}
7. Nxc6 {[%clk 0:02:42.2]} 7... bxc6 {[%clk 0:02:35.5]} 8. Qd4 {[%clk 0:02:36]}
8... Bxc3+ {[%clk 0:02:09.2]} 9. Qxc3 {[%clk 0:02:32]} 9... Nf6 {[%clk
0:02:04.5]} 10. f3 {[%clk 0:02:04.8]} 10... d5 {[%clk 0:01:56.2]} 11. O-O-O
{[%clk 0:01:54.4]} 11... Bb7 {[%clk 0:01:40.6]} 12. g4 {[%clk 0:01:43.7]} 12...
O-O {[%clk 0:01:38.3]} 13. h4 {[%clk 0:01:37.8]} 13... a5 {[%clk 0:01:38.5]} 14.
h5 {[%clk 0:01:34.2]} 14... Qe7 {[%clk 0:01:29.2]} 15. h6 {[%clk 0:01:25]} 15...
dxe4 {[%clk 0:00:32.7]} 16. Bd6 {[%clk 0:01:07.1]} 16... Qe8 {[%clk 0:00:32.2]}
17. hxg7 {[%clk 0:01:04.3]} 17... Kxg7 {[%clk 0:00:29.7]} 18. g5 {[%clk
0:01:00.1]} 1-0

[Event "*** SCC Grand Prix: Titled Tuesday Blitz"]
[Site "Chess.com"]
[Date "2020.07.21"]
[Round "3"]
[White "OK97"]
[Black "ehrenfeld"]
[Result "1-0"]
[WhiteElo "2812"]
[BlackElo "2529"]
[TimeControl "180+1"]
[EndTime "10:26:03 PDT"]
[Termination "OK97 won by checkmate"]

1. d4 {[%clk 0:03:00.9]} 1... f5 {[%clk 0:02:59.1]} 2. Bf4 {[%clk 0:03:00.7]}
2... Nf6 {[%clk 0:02:57.4]} 3. e3 {[%clk 0:03:01.2]} 3... d6 {[%clk 0:02:55.7]}
4. Nc3 {[%clk 0:03:01]} 4... g6 {[%clk 0:02:45.9]} 5. h4 {[%clk 0:03:00.9]} 5...
h6 {[%clk 0:02:30.6]} 6. Qf3 {[%clk 0:03:00.2]} 6... Nc6 {[%clk 0:02:26]} 7.
O-O-O {[%clk 0:02:49.7]} 7... Bd7 {[%clk 0:02:17.8]} 8. Qg3 {[%clk 0:02:44]}
8... Kf7 {[%clk 0:01:41]} 9. Nh3 {[%clk 0:02:05.5]} 9... e6 {[%clk 0:01:19.3]}
10. Be2 {[%clk 0:01:48.8]} 10... Qe7 {[%clk 0:01:14.7]} 11. Bf3 {[%clk
0:01:43.7]} 11... e5 {[%clk 0:00:53.2]} 12. Nd5 {[%clk 0:01:25.6]} 12... Nxd5
{[%clk 0:00:21.7]} 13. Bxd5+ {[%clk 0:01:26.5]} 13... Kg7 {[%clk 0:00:10.2]} 14.
h5 {[%clk 0:01:09.9]} 14... exf4 {[%clk 0:00:07.4]} 15. Qxg6# {[%clk 0:01:09]}
1-0

[Event "*** SCC Grand Prix: Titled Tuesday Blitz"]
[Site "Chess.com"]
[Date "2020.07.21"]
[Round "3"]
[White "Stormeman100100"]
[Black "Ariadna_Atreides"]
[Result "1-0"]
[WhiteElo "2466"]
[BlackElo "2100"]
[TimeControl "180+1"]
[EndTime "10:26:04 PDT"]
[Termination "Stormeman100100 won by checkmate"]

1. e4 {[%clk 0:03:00.9]} 1... c5 {[%clk 0:02:59.1]} 2. a3 {[%clk 0:02:59.8]}
2... Nc6 {[%clk 0:02:54.5]} 3. b4 {[%clk 0:02:49.5]} 3... cxb4 {[%clk
0:02:54.4]} 4. axb4 {[%clk 0:02:50.4]} 4... Nxb4 {[%clk 0:02:51.5]} 5. c3 {[%clk
0:02:50.9]} 5... Nc6 {[%clk 0:02:49.6]} 6. d4 {[%clk 0:02:51.8]} 6... d5 {[%clk
0:02:41.9]} 7. exd5 {[%clk 0:02:52.7]} 7... Qxd5 {[%clk 0:02:41.3]} 8. Na3
{[%clk 0:02:53.6]} 8... Nf6 {[%clk 0:02:36.3]} 9. Nb5 {[%clk 0:02:54]} 9... Qd8
{[%clk 0:02:32.4]} 10. d5 {[%clk 0:02:54.4]} 10... Ne5 {[%clk 0:02:22.1]} 11.
Bf4 {[%clk 0:02:53.2]} 11... Nfd7 {[%clk 0:02:01.4]} 12. Qe2 {[%clk 0:02:42.6]}
12... f6 {[%clk 0:02:00.5]} 13. Nf3 {[%clk 0:02:37.4]} 13... g5 {[%clk
0:01:54.5]} 14. Bxe5 {[%clk 0:02:23.1]} 14... fxe5 {[%clk 0:01:49.9]} 15. Nxe5
{[%clk 0:01:04.8]} 15... Nf6 {[%clk 0:01:24.9]} 16. d6 {[%clk 0:00:33.4]} 16...
Nd5 {[%clk 0:00:51.9]} 17. Qh5# {[%clk 0:00:28.1]} 1-0

[Event "*** SCC Grand Prix: Titled Tuesday Blitz"]
[Site "Chess.com"]
[Date "2020.07.21"]
[Round "3"]
[White "The_Machine04"]
[Black "Alberquintin"]
[Result "0-1"]
[WhiteElo "2291"]
[BlackElo "2484"]
[TimeControl "180+1"]
[EndTime "10:26:09 PDT"]
[Termination "Alberquintin won by resignation"]

1. d4 {[%clk 0:03:00]} 1... Nf6 {[%clk 0:02:59.6]} 2. Bg5 {[%clk 0:02:55.9]}
2... g6 {[%clk 0:02:58.3]} 3. Bxf6 {[%clk 0:02:53.3]} 3... exf6 {[%clk
0:02:58.9]} 4. g3 {[%clk 0:02:53]} 4... Bg7 {[%clk 0:02:59.3]} 5. Bg2 {[%clk
0:02:47.9]} 5... O-O {[%clk 0:02:59.8]} 6. e3 {[%clk 0:02:37.9]} 6... d6 {[%clk
0:02:59.8]} 7. Ne2 {[%clk 0:02:35.7]} 7... c5 {[%clk 0:02:59.5]} 8. O-O {[%clk
0:02:32.6]} 8... Nc6 {[%clk 0:02:59.2]} 9. c4 {[%clk 0:02:18.7]} 9... cxd4
{[%clk 0:02:57.6]} 10. exd4 {[%clk 0:02:13.9]} 10... Bg4 {[%clk 0:02:56]} 11.
Nbc3 {[%clk 0:02:04.8]} 11... Bxe2 {[%clk 0:02:50.8]} 12. Nxe2 {[%clk
0:02:01.1]} 12... f5 {[%clk 0:02:51.3]} 13. Qd2 {[%clk 0:01:54.4]} 13... Qb6
{[%clk 0:02:50.3]} 14. Rfd1 {[%clk 0:01:51.4]} 14... Rfe8 {[%clk 0:02:50]} 15.
Rab1 {[%clk 0:01:34]} 15... Re7 {[%clk 0:02:39.3]} 16. Bf3 {[%clk 0:01:30.3]}
16... Rae8 {[%clk 0:02:33.9]} 17. b4 {[%clk 0:01:10.6]} 17... Rxe2 {[%clk
0:02:23.3]} 18. Bxe2 {[%clk 0:01:05.4]} 18... Nxd4 {[%clk 0:02:23.7]} 19. Re1
{[%clk 0:00:12.4]} 19... Rxe2 {[%clk 0:02:21.9]} 20. Qd3 {[%clk 0:00:12.6]}
20... Rxe1+ {[%clk 0:02:10]} 21. Rxe1 {[%clk 0:00:13.5]} 21... Be5 {[%clk
0:02:04.3]} 22. a3 {[%clk 0:00:11.9]} 22... Qc6 {[%clk 0:02:00.1]} 23. Re3
{[%clk 0:00:07.6]} 23... Ne6 {[%clk 0:01:56.7]} 24. Re2 {[%clk 0:00:05.7]} 24...
f4 {[%clk 0:01:51.4]} 25. Qd5 {[%clk 0:00:04.4]} 25... Nd4 {[%clk 0:01:43.1]}
26. Rd2 {[%clk 0:00:02.2]} 26... Qxd5 {[%clk 0:01:42.4]} 27. cxd5 {[%clk
0:00:01.8]} 27... Nf3+ {[%clk 0:01:42.2]} 0-1

[Event "*** SCC Grand Prix: Titled Tuesday Blitz"]
[Site "Chess.com"]
[Date "2020.07.21"]
[Round "3"]
[White "1d4_1-0"]
[Black "Xeniya2005"]
[Result "0-1"]
[WhiteElo "2143"]
[BlackElo "2379"]
[TimeControl "180+1"]
[EndTime "10:26:10 PDT"]
[Termination "Xeniya2005 won by resignation"]

1. d4 {[%clk 0:03:00.9]} 1... Nf6 {[%clk 0:02:59.5]} 2. c4 {[%clk 0:03:00.9]}
2... b6 {[%clk 0:02:59.5]} 3. f3 {[%clk 0:02:53.3]} 3... Nc6 {[%clk 0:02:57.3]}
4. Nc3 {[%clk 0:02:51.9]} 4... g6 {[%clk 0:02:51.5]} 5. e3 {[%clk 0:02:48.9]}
5... Bg7 {[%clk 0:02:49.2]} 6. Bd3 {[%clk 0:02:49]} 6... Bb7 {[%clk 0:02:46]} 7.
Nge2 {[%clk 0:02:49]} 7... e6 {[%clk 0:02:42.3]} 8. Bd2 {[%clk 0:02:38.4]} 8...
d5 {[%clk 0:02:34.9]} 9. Nf4 {[%clk 0:02:33.8]} 9... O-O {[%clk 0:02:31.4]} 10.
h4 {[%clk 0:02:29.6]} 10... dxc4 {[%clk 0:02:24.5]} 11. Bxc4 {[%clk 0:02:29.1]}
11... e5 {[%clk 0:02:23.6]} 12. dxe5 {[%clk 0:02:21.9]} 12... Nxe5 {[%clk
0:02:24]} 13. Be2 {[%clk 0:02:20.5]} 13... h5 {[%clk 0:02:18.1]} 14. Qc2 {[%clk
0:02:18.3]} 14... Qe7 {[%clk 0:02:12.8]} 15. e4 {[%clk 0:02:13.9]} 15... c5
{[%clk 0:02:04]} 16. O-O-O {[%clk 0:02:10.1]} 16... a6 {[%clk 0:02:01.4]} 17.
Be3 {[%clk 0:02:06.8]} 17... Rac8 {[%clk 0:01:55]} 18. Ncd5 {[%clk 0:02:04.9]}
18... Nxd5 {[%clk 0:01:52.6]} 19. Nxd5 {[%clk 0:02:05.1]} 19... Bxd5 {[%clk
0:01:48.5]} 20. Rxd5 {[%clk 0:02:04.8]} 20... Nc6 {[%clk 0:01:43.5]} 21. Bxa6
{[%clk 0:01:43.9]} 21... Nb4 {[%clk 0:01:40.7]} 22. Qb3 {[%clk 0:01:31]} 22...
Nxa6 {[%clk 0:01:26.8]} 23. g4 {[%clk 0:01:31.2]} 23... Nb4 {[%clk 0:01:23.8]}
24. Rg5 {[%clk 0:01:27]} 24... c4 {[%clk 0:01:19.4]} 25. Qd1 {[%clk 0:01:13.6]}
25... Nd3+ {[%clk 0:01:17.3]} 26. Kb1 {[%clk 0:01:13.6]} 26... Nxb2 {[%clk
0:01:12.4]} 27. Qc2 {[%clk 0:01:09.1]} 27... Nd3 {[%clk 0:01:10.2]} 28. Bd2
{[%clk 0:01:06]} 28... Qf6 {[%clk 0:00:52]} 29. e5 {[%clk 0:01:04.1]} 29... Qxf3
{[%clk 0:00:50.5]} 30. gxh5 {[%clk 0:01:02.4]} 30... Qxh1+ {[%clk 0:00:48.6]}
0-1